bitfinex-derivatives/quotes_SOLF0:USTF0_20250830
["timestamp","ask_amount","ask_price","bid_price","bid_amount"]
[1756553222294,7.98,202.58,202.53,9.0166947]
[1756553222493,1.5466947,202.59,202.53,1.5466947]
[1756553222690,7.98,202.58,202.53,9.0166947]
[1756553222889,9.5266947,202.59,202.53,9.0166947]
[1756553224491,9.5266947,202.59,202.53,7.47]
[1756553224693,7.98,202.56,202.53,7.47]
[1756553224888,1.5466947,202.57,202.53,7.47]
[1756553225494,7.98,202.56,202.51,1.5466947]
[1756553225692,7.98,202.56,202.52,7.47]
[1756553225893,7.98,202.56,202.51,1.5466947]
[1756553226093,7.98,202.56,202.52,7.47]
[1756553226297,7.98,202.56,202.51,1.5466947]
[1756553226598,7.98,202.56,202.52,7.47]
[1756553226793,7.98,202.56,202.51,1.5466947]
[1756553227896,7.98,202.56,202.52,7.29]
[1756553228093,7.98,202.56,202.51,1.5466947]
[1756553228292,7.98,202.56,202.52,7.29]
[1756553228696,7.98,202.56,202.51,1.5466947]
[1756553228896,7.98,202.56,202.52,7.29]
[1756553229096,7.98,202.56,202.51,1.5466947]
[1756553229296,7.98,202.56,202.52,7.29]
[1756553229697,7.98,202.56,202.51,1.5466947]
[1756553230201,7.98,202.56,202.52,7.29]
[1756553232000,7.98,202.56,202.51,1.5466947]
[1756553232500,7.98,202.56,202.52,7.29]
[1756553233300,7.98,202.56,202.51,1.5466947]
[1756553233492,7.98,202.56,202.52,7.29]
[1756553233806,7.98,202.56,202.51,1.5466947]
[1756553234605,7.98,202.56,202.52,7.29]
[1756553234902,1.5466947,202.58,202.51,1.5466947]
[1756553235103,7.31,202.56,202.53,7.29]
[1756553235702,7.31,202.57,202.53,7.29]
[1756553235905,7.31,202.57,202.51,1.5466947]
[1756553236105,1.5466947,202.58,202.51,1.5466947]
[1756553236309,7.31,202.58,202.52,7.29]
[1756553236500,8.8566947,202.58,202.52,7.29]
[1756553237804,7.31,202.58,202.52,7.29]
[1756553238008,8.8566947,202.58,202.52,7.29]
[1756553240809,8.8566947,202.58,202.52,8.8366947]
[1756553241305,7.31,202.55,202.49,7.29]
[1756553241509,14.84,202.62,202.47,8.8366947]
[1756553241510,7.31,202.51,202.47,8.8366947]
[1756553241711,1.5466947,202.52,202.47,8.8366947]
[1756553242308,7.31,202.51,202.48,7.29]
[1756553244410,7.31,202.51,202.47,1.5466947]
[1756553244608,7.31,202.51,202.48,7.29]
[1756553246409,7.31,202.65,202.5,7.29]
[1756553246713,8.8566947,202.57,202.51,8.8366947]
[1756553257715,6.39386025,202.67,202.51,8.8366947]
[1756553257919,1.5466947,202.6,202.54,7.27]
[1756553258118,7.87,202.59,202.54,7.27]
[1756553258517,1.5466947,202.58,202.54,7.27]
[1756553258915,7.87,202.57,202.54,7.27]
[1756553259614,1.5466947,202.58,202.54,7.27]
[1756553260016,1.5466947,202.58,202.51,5.67563583]
[1756553260217,7.87,202.57,202.51,12.94563583]
[1756553260518,9.4166947,202.58,202.52,11.39894113]
[1756553267229,1.5466947,202.58,202.53,4.12894113]
[1756553267429,1.5466947,202.58,202.54,7.27]
[1756553267620,7.87,202.57,202.54,7.27]
[1756553268729,1.5466947,202.58,202.54,7.27]
[1756553268931,7.87,202.57,202.54,7.27]
[1756553271434,7.87,202.57,202.53,4.12894113]
[1756553271624,7.87,202.57,202.54,7.27]
[1756553274231,1.5466947,202.58,202.54,7.27]
[1756553274427,7.87,202.57,202.54,7.27]
[1756553276030,1.5466947,202.58,202.54,7.27]
[1756553276235,7.87,202.57,202.54,7.27]
[1756553282837,7.87,202.57,202.53,4.12894113]
[1756553283038,7.87,202.57,202.54,7.27]
[1756553283338,7.87,202.61,202.54,7.27]
[1756553283537,7.87,202.61,202.56,7.27]
[1756553284130,7.87,202.61,202.55,5.67563583]
[1756553284333,7.87,202.61,202.56,7.27]
[1756553284531,1.5466947,202.62,202.55,5.67563583]
[1756553284736,7.87,202.61,202.55,12.94563583]
[1756553284936,1.5466947,202.6,202.56,7.27]
[1756553285241,17.08,202.64,202.52,5.52186526]
[1756553285242,1.5466947,202.58,202.53,4.12894113]
[1756553285540,17.08,202.64,202.51,11.39894113]
[1756553285541,1.5466947,202.56,202.51,11.39894113]
[1756553285838,7.87,202.55,202.51,7.27]
[1756553286029,7.87,202.55,202.52,7.27]
[1756553286739,7.87,202.55,202.51,4.12894113]
[1756553287241,7.87,202.55,202.52,7.66]
[1756553287642,7.87,202.55,202.51,4.12894113]
[1756553288037,7.87,202.55,202.52,7.66]
[1756553288235,7.87,202.55,202.51,4.12894113]
[1756553288436,7.87,202.55,202.52,7.66]
[1756553288642,7.87,202.55,202.51,4.12894113]
[1756553289343,7.87,202.55,202.52,7.66]
[1756553289844,7.87,202.55,202.51,4.12894113]
[1756553290044,7.87,202.55,202.52,7.66]
[1756553291141,7.87,202.55,202.51,4.12894113]
[1756553291342,7.87,202.55,202.52,7.66]
[1756553294044,7.44,202.55,202.52,7.66]
[1756553296746,1.5466947,202.56,202.52,7.66]
[1756553296946,7.44,202.55,202.52,7.66]
[1756553297546,7.44,202.55,202.51,4.12894113]
[1756553298145,7.44,202.55,202.52,7.66]
[1756553298741,7.44,202.55,202.51,4.12894113]
[1756553299042,7.44,202.55,202.52,7.66]
[1756553300953,1.5466947,202.56,202.52,7.66]
[1756553301350,1.5466947,202.54,202.49,4.12894113]
[1756553301556,7.44,202.51,202.49,11.78894113]
[1756553301852,7.44,202.51,202.49,7.66]
[1756553302050,1.5466947,202.52,202.48,4.12894113]
[1756553302248,8.9866947,202.52,202.48,4.12894113]
[1756553302555,8.9866947,202.52,202.5,7.66]
[1756553306454,7.44,202.52,202.49,7.66]
[1756553306660,7.44,202.52,202.48,4.12894113]
[1756553306861,7.44,202.52,202.49,7.66]
[1756553307860,7.44,202.52,202.48,4.12894113]
[1756553308163,7.44,202.52,202.49,7.66]
[1756553308659,7.44,202.52,202.48,4.12894113]
[1756553308858,7.44,202.52,202.49,7.66]
[1756553309259,7.44,202.52,202.48,4.12894113]
[1756553309461,7.44,202.52,202.49,7.66]
[1756553309756,7.44,202.52,202.48,4.12894113]
[1756553309961,7.44,202.52,202.49,7.66]
[1756553310460,7.44,202.52,202.48,4.12894113]
[1756553311357,7.44,202.52,202.49,7.66]
[1756553311557,7.44,202.52,202.48,4.12894113]
[1756553311857,7.44,202.52,202.49,7.66]
[1756553312052,7.44,202.5,202.47,7.66]
[1756553313463,1.5466947,202.51,202.46,4.12894113]
[1756553313663,7.44,202.5,202.46,7.66]
[1756553314058,1.5466947,202.51,202.45,4.12894113]
[1756553314865,7.44,202.46,202.43,7.66]
[1756553315262,1.5466947,202.47,202.43,7.66]
[1756553315463,7.44,202.46,202.43,7.66]
[1756553315663,1.5466947,202.47,202.43,7.66]
[1756553315965,7.44,202.46,202.41,5.67563583]
[1756553316166,7.44,202.46,202.42,7.66]
[1756553316961,7.44,202.46,202.42,7.81]
[1756553317161,7.44,202.46,202.41,1.5466947]
[1756553317467,7.44,202.46,202.42,7.81]
[1756553317868,7.44,202.46,202.4,8.57504113]
[1756553318167,1.5466947,202.47,202.41,1.5466947]
[1756553318369,7.81,202.46,202.41,9.3566947]
[1756553318570,1.5466947,202.47,202.41,1.5466947]
[1756553319171,9.3566947,202.47,202.42,7.81]
[1756553319572,9.3566947,202.47,202.41,1.5466947]
[1756553319573,1.5466947,202.47,202.41,1.5466947]
[1756553319871,9.3566947,202.47,202.42,7.81]
[1756553320071,1.5466947,202.47,202.41,1.5466947]
[1756553320259,1.5466947,202.47,202.42,7.81]
[1756553320465,9.3566947,202.47,202.42,7.81]
[1756553320971,1.5466947,202.47,202.41,1.5466947]
[1756553321272,9.3566947,202.47,202.41,7.81]
[1756553326370,1.5466947,202.49,202.42,9.3566947]
[1756553327283,1.5466947,202.49,202.43,7.81]
[1756553327786,7.81,202.5,202.43,12.2554]
[1756553328083,1.5466947,202.49,202.43,12.2554]
[1756553328486,7.81,202.48,202.43,12.2554]
[1756553329084,1.5466947,202.49,202.43,4.4454]
[1756553330074,7.81,202.46,202.43,7.81]
[1756553331984,7.81,202.46,202.41,4.4459]
[1756553332185,7.81,202.46,202.42,7.81]
[1756553332678,7.81,202.46,202.41,4.4459]
[1756553333276,7.81,202.46,202.42,7.81]
[1756553333690,7.81,202.46,202.41,4.4459]
[1756553334084,1.5466947,202.47,202.42,7.81]
[1756553334384,7.81,202.44,202.42,7.81]
[1756553334583,7.81,202.44,202.4,1.5466947]
[1756553334584,1.5466947,202.45,202.41,7.81]
[1756553334786,1.5466947,202.47,202.41,7.81]
[1756553335289,9.3566947,202.47,202.41,7.81]
[1756553337685,7.81,202.44,202.41,7.81]
[1756553338487,7.81,202.44,202.4,4.446]
[1756553338689,7.81,202.44,202.41,7.81]
[1756553338890,7.81,202.44,202.4,4.446]
[1756553339186,1.5466947,202.45,202.41,7.81]
[1756553339388,1.5466947,202.45,202.4,4.446]
[1756553339690,1.5466947,202.47,202.41,1.5466947]
[1756553339888,9.3566947,202.47,202.41,9.3566947]
[1756553347794,9.3566947,202.47,202.41,13.48742504]
[1756553354296,7.53,202.46,202.42,11.67073034]
[1756553354597,9.0766947,202.45,202.42,11.67073034]
[1756553354895,7.53,202.44,202.42,11.67073034]
[1756553355796,7.53,202.44,202.42,7.54]
[1756553356491,7.53,202.44,202.41,7.54]
[1756553356891,1.5466947,202.45,202.4,10.12342504]
[1756553357091,9.0766947,202.45,202.4,10.12342504]
[1756553357292,9.0766947,202.45,202.41,7.54]
[1756553357591,9.0766947,202.45,202.42,7.54]
[1756553357787,9.0766947,202.45,202.41,7.54]
[1756553357990,9.0766947,202.45,202.4,10.12342504]
[1756553358190,1.5466947,202.46,202.41,7.54]
[1756553358387,1.5466947,202.46,202.42,4.13073034]
[1756553358591,9.0766947,202.46,202.43,7.54]
[1756553360300,1.5466947,202.46,202.43,7.54]
[1756553360499,7.53,202.45,202.43,7.54]
[1756553364899,7.53,202.49,202.44,7.54]
[1756553365095,7.53,202.49,202.45,4.13073034]
[1756553365507,7.53,202.49,202.46,7.54]
[1756553368105,1.5466947,202.5,202.46,7.54]
[1756553368502,7.53,202.49,202.46,7.54]
[1756553368802,7.53,202.49,202.44,5.67742504]
[1756553368994,7.53,202.49,202.45,7.54]
[1756553369398,7.53,202.49,202.44,5.67742504]
[1756553369905,1.5466947,202.5,202.45,7.54]
[1756553370105,7.53,202.49,202.44,5.67742504]
[1756553370305,1.5466947,202.5,202.45,7.54]
[1756553370508,7.53,202.49,202.44,5.67742504]
[1756553370907,7.53,202.5,202.46,1.5466947]
[1756553371108,7.53,202.5,202.46,5.67742504]
[1756553371509,7.53,202.53,202.47,11.67073034]
[1756553372102,7.53,202.53,202.48,1.5466947]
[1756553372809,1.5466947,202.54,202.48,1.5466947]
[1756553373109,1.5466947,202.52,202.48,7.54]
[1756553373610,7.53,202.51,202.48,7.54]
[1756553373913,7.53,202.51,202.47,7.54]
[1756553374101,7.53,202.51,202.48,7.54]
[1756553374510,7.53,202.51,202.46,10.12212504]
[1756553374806,7.53,202.51,202.47,7.54]
[1756553375412,7.53,202.51,202.48,7.54]
[1756553378005,1.5466947,202.52,202.48,7.54]
[1756553378206,7.69,202.51,202.48,7.54]
[1756553378510,7.69,202.51,202.46,10.12212504]
[1756553378511,7.69,202.51,202.47,7.71]
[1756553378711,9.2366947,202.53,202.47,7.71]
[1756553379409,9.2366947,202.53,202.48,1.5466947]
[1756553380605,9.2366947,202.53,202.49,7.71]
[1756553380905,9.2366947,202.53,202.48,1.5466947]
[1756553381111,9.2366947,202.53,202.49,7.71]
[1756553381312,9.2366947,202.53,202.48,1.5466947]
[1756553381910,9.2366947,202.53,202.49,7.71]
[1756553382711,7.69,202.52,202.48,1.5466947]
[1756553383113,7.69,202.52,202.49,7.71]
[1756553383312,7.69,202.52,202.48,1.5466947]
[1756553383508,7.69,202.52,202.49,7.71]
[1756553384215,1.5466947,202.53,202.49,7.71]
[1756553384515,7.69,202.52,202.49,7.71]
[1756553385213,1.5466947,202.53,202.49,7.71]
[1756553386014,7.69,202.52,202.49,7.71]
[1756553390613,9.2366947,202.52,202.49,7.71]
[1756553391018,9.2366947,202.52,202.48,1.5466947]
[1756553391216,9.2366947,202.52,202.49,7.71]
[1756553393116,9.2366947,202.52,202.48,1.5466947]
[1756553393418,9.2366947,202.52,202.49,7.71]
[1756553393617,9.2366947,202.52,202.48,1.5466947]
[1756553393916,9.2366947,202.52,202.49,7.71]
[1756553397019,7.69,202.51,202.49,7.71]
[1756553397412,39.58,202.55,202.46,11.84073034]
[1756553397617,7.69,202.47,202.43,11.84073034]
[1756553397816,39.58,202.55,202.43,7.71]
[1756553397817,9.2366947,202.45,202.43,7.71]
[1756553400118,7.69,202.44,202.4,11.84073034]
[1756553400319,7.69,202.42,202.4,7.71]
[1756553400818,7.69,202.4,202.38,7.71]
[1756553401023,1.5466947,202.41,202.37,7.71]
[1756553401225,1.5466947,202.41,202.36,72.90165873]
[1756553401425,1.5466947,202.42,202.37,7.71]
[1756553401927,1.5466947,202.42,202.36,74.44835343]
[1756553402122,1.5466947,202.42,202.37,7.71]
[1756553402826,9.2366947,202.42,202.37,7.71]
[1756553403022,1.5466947,202.42,202.36,70.31762309]
[1756553403326,1.5466947,202.4,202.36,70.31762309]
[1756553403924,7.69,202.42,202.37,7.71]
[1756553404223,1.5466947,202.43,202.37,7.71]
[1756553405832,7.69,202.4,202.37,7.71]
[1756553406227,1.5466947,202.41,202.36,70.31762309]
[1756553406427,9.2366947,202.41,202.37,7.71]
[1756553406630,9.2366947,202.41,202.36,70.31762309]
[1756553406824,9.2366947,202.41,202.36,68.77092839]
[1756553407327,8.9566947,202.38,202.33,5.67742504]
[1756553407533,7.41,202.37,202.34,7.73]
[1756553408031,7.41,202.37,202.33,4.13073034]
[1756553408526,7.41,202.37,202.34,7.73]
[1756553409030,7.41,202.37,202.33,4.13073034]
[1756553409531,7.41,202.37,202.33,7.73]
[1756553409931,7.41,202.35,202.31,4.13073034]
[1756553410227,7.41,202.35,202.31,7.73]
[1756553411429,7.41,202.35,202.3,4.13073034]
[1756553412628,7.41,202.35,202.31,7.73]
[1756553412835,7.41,202.33,202.29,123.93073034]
[1756553413029,7.41,202.38,202.33,7.73]
[1756553413231,8.9566947,202.38,202.32,9.2766947]
[1756553416733,8.9566947,202.38,202.32,7.73]
[1756553417732,7.41,202.35,202.32,7.73]
[1756553417928,1.5466947,202.36,202.32,7.73]
[1756553418333,7.41,202.35,202.32,7.73]
[1756553418835,1.5466947,202.36,202.3,1.5466947]
[1756553419035,8.9566947,202.36,202.3,9.2766947]
[1756553420937,1.5466947,202.38,202.3,9.2766947]
[1756553421733,1.5466947,202.38,202.31,4.4482]
[1756553421936,1.5466947,202.38,202.32,7.73]
[1756553422135,7.41,202.39,202.32,9.2766947]
[1756553422333,8.9566947,202.42,202.36,1.5466947]
[1756553422537,8.9566947,202.42,202.36,9.2766947]
[1756553422941,8.27010875,202.45,202.38,1.5466947]
[1756553423131,1.5466947,202.44,202.38,1.5466947]
[1756553423335,7.41,202.39,202.33,7.73]
[1756553424941,9.82762195,202.39,202.33,7.73]
[1756553427136,7.41,202.35,202.29,7.73]
[1756553427341,2.41762195,202.36,202.26,7.73]
[1756553427535,9.82762195,202.36,202.26,7.73]
[1756553427737,2.41762195,202.39,202.28,2.41762195]
[1756553427938,7.41,202.39,202.29,7.73]
[1756553428137,7.41,202.39,202.29,4.4484]
[1756553428337,7.41,202.39,202.28,2.41762195]
[1756553428338,7.41,202.39,202.3,7.73]
[1756553428740,2.41762195,202.38,202.3,7.73]
[1756553429043,7.41,202.37,202.3,7.73]
[1756553433540,0.86010875,202.45,202.27,7.73]
[1756553433747,7.41,202.36,202.27,7.73]
[1756553435547,7.41,202.36,202.27,12.179]
[1756553435941,2.41762195,202.37,202.27,12.179]
[1756553436142,2.41762195,202.35,202.27,12.179]
[1756553436444,7.41,202.34,202.27,12.179]
[1756553439249,7.41,202.34,202.27,16.30973034]
[1756553439945,7.41,202.34,202.28,7.73]
[1756553440146,2.41762195,202.35,202.28,7.73]
[1756553440346,2.41762195,202.35,202.29,7.73]
[1756553440546,2.41762195,202.35,202.29,12.1785]
[1756553442446,2.41762195,202.35,202.29,16.30923034]
[1756553442642,2.41762195,202.35,202.29,8.57923034]
[1756553442951,2.41762195,202.35,202.3,7.73]
[1756553443150,2.41762195,202.35,202.29,8.57923034]
[1756553443447,2.41762195,202.35,202.3,7.73]
[1756553443749,2.41762195,202.35,202.29,8.57923034]
[1756553444050,2.41762195,202.35,202.3,7.73]
[1756553444249,2.41762195,202.35,202.3,11.86073034]
[1756553444447,9.88762195,202.35,202.3,4.13073034]
[1756553444853,9.88762195,202.35,202.31,7.73]
[1756553445253,9.88762195,202.35,202.3,4.13073034]
[1756553445855,7.47,202.34,202.31,7.73]
[1756553449052,7.47,202.34,202.31,11.86073034]
[1756553449353,7.47,202.34,202.32,7.73]
[1756553451356,9.01809164,202.34,202.32,7.73]
[1756553456365,7.47,202.34,202.32,7.73]
[1756553456566,9.01809164,202.34,202.32,7.73]
[1756553460066,9.01809164,202.34,202.32,11.86073034]
[1756553462566,1.54809164,202.34,202.32,4.13073034]
[1756553462866,7.47,202.38,202.33,7.73]
[1756553463067,7.47,202.38,202.32,5.67882198]
[1756553463068,9.01809164,202.38,202.35,7.73]
[1756553463270,7.47,202.37,202.35,7.73]
[1756553465970,7.47,202.35,202.33,4.13073034]
[1756553466172,7.47,202.35,202.33,7.73]
[1756553466673,1.54809164,202.34,202.32,4.13073034]
[1756553466872,7.47,202.33,202.31,4.13073034]
[1756553467073,9.10809164,202.32,202.31,4.13073034]
[1756553467268,7.56,202.32,202.31,4.13073034]
[1756553471381,7.56,202.32,202.3,8.02]
[1756553471975,2.41957204,202.34,202.29,13.54186526]
[1756553472181,7.56,202.33,202.32,4.16550972]
[1756553476178,7.56,202.33,202.31,4.16550972]
[1756553476374,2.41957204,202.34,202.3,4.16550972]
[1756553476780,7.56,202.33,202.3,4.16550972]
[1756553477273,2.41957204,202.34,202.3,4.16550972]
[1756553477479,7.56,202.33,202.3,4.16550972]
[1756553477679,2.41957204,202.34,202.3,4.16550972]
[1756553479079,7.56,202.33,202.3,4.16550972]
[1756553479280,2.41957204,202.34,202.3,4.16550972]
[1756553479483,7.56,202.33,202.29,12.18550972]
[1756553479983,2.41957204,202.34,202.3,8.02]
[1756553480281,7.56,202.33,202.3,8.02]
[1756553482186,7.56,202.33,202.31,4.16550972]
[1756553482385,7.56,202.33,202.3,12.18550972]
[1756553482788,7.56,202.33,202.31,8.02]
[1756553483686,7.56,202.33,202.3,12.18550972]
[1756553483885,2.41957204,202.34,202.3,12.18550972]
[1756553484087,7.56,202.33,202.3,12.18550972]
[1756553484987,2.41957204,202.34,202.3,12.18550972]
[1756553485487,7.56,202.33,202.3,12.18550972]
[1756553485690,2.41957204,202.4,202.31,8.02]
[1756553485885,44.79957204,202.39,202.33,4.16550972]
[1756553486079,44.79957204,202.39,202.29,2.41957204]
[1756553486080,44.79957204,202.39,202.35,8.02]
[1756553486283,44.79957204,202.39,202.34,4.16550972]
[1756553486479,44.79957204,202.39,202.35,8.02]
[1756553486884,44.79957204,202.39,202.34,4.16550972]
[1756553487084,44.79957204,202.39,202.35,8.02]
[1756553487283,42.38,202.39,202.34,4.16550972]
[1756553487478,1.54759513,202.37,202.35,8.02]
[1756553488081,1.54759513,202.37,202.34,4.16550972]
[1756553488287,1.54759513,202.37,202.35,8.02]
[1756553489291,44.79814167,202.39,202.35,8.02]
[1756553490092,37.23814167,202.39,202.35,8.02]
[1756553490292,7.56,202.38,202.35,8.02]
[1756553491294,7.56,202.38,202.34,4.16550972]
[1756553491592,2.41814167,202.43,202.35,12.18550972]
[1756553491795,7.56,202.42,202.36,4.16550972]
[1756553492493,9.97814167,202.43,202.37,8.02]
[1756553492689,7.56,202.43,202.37,8.02]
[1756553492889,455.37825042,202.45,202.37,12.18550972]
[1756553493096,334.59814167,202.45,202.38,8.02]
[1756553493290,7.56,202.46,202.35,7.94000693]
[1756553493291,7.56,202.46,202.39,4.16550972]
[1756553493494,2.41814167,202.48,202.41,8.02]
[1756553493797,2.41814167,202.48,202.42,8.02]
[1756553494391,7.56,202.49,202.42,8.02]
[1756553499999,51.8779954,202.5,202.42,8.02]
[1756553500291,3.2779954,202.5,202.42,8.02]
[1756553500495,11.0279954,202.5,202.42,8.02]
[1756553505505,8.60985373,202.5,202.42,8.02]
[1756553505799,2.41814167,202.49,202.42,8.02]
[1756553506200,11.0279954,202.5,202.42,8.02]
[1756553507799,8.60985373,202.5,202.42,8.02]
[1756553508098,11.0279954,202.5,202.42,8.02]
[1756553509399,8.60985373,202.5,202.42,8.02]
[1756553509596,7.75,202.53,202.44,2.41814167]
[1756553509901,7.75,202.53,202.45,7.69]
[1756553510700,7.75,202.53,202.48,7.69]
[1756553511200,7.75,202.53,202.47,4.4445]
[1756553511398,2.41814167,202.55,202.48,7.69]
[1756553511597,8.60959885,202.56,202.48,12.1343]
[1756553511801,7.75,202.56,202.48,7.69]
[1756553512704,7.75,202.56,202.49,7.69]
[1756553514301,10.16814167,202.56,202.49,7.69]
[1756553520510,119.88,202.55,202.49,7.69]
[1756553520810,7.75,202.54,202.49,7.69]
[1756553521010,119.88,202.55,202.49,7.69]
[1756553521513,7.75,202.49,202.43,7.69]
[1756553522914,2.41814167,202.47,202.43,7.69]
[1756553523114,7.75,202.46,202.38,7.69]
[1756553524608,119.98,202.45,202.38,7.69]
[1756553527109,7.73,202.44,202.38,7.69]
[1756553531115,119.98,202.46,202.38,7.69]
[1756553531515,119.98,202.46,202.38,11.82518457]
[1756553531720,119.98,202.46,202.39,7.97]
[1756553533720,127.71,202.46,202.39,7.97]
[1756553533911,7.73,202.44,202.39,7.97]
[1756553534112,10.14814167,202.45,202.39,7.97]
[1756553534521,7.73,202.45,202.39,7.97]
[1756553538526,7.73,202.43,202.36,4.13518457]
[1756553538826,119.92,202.46,202.35,7.97]
[1756553538827,10.14814167,202.41,202.35,7.97]
[1756553539223,130.12814167,202.41,202.35,7.97]
[1756553539926,130.12814167,202.41,202.33,4.13518457]
[1756553540126,130.12814167,202.41,202.32,12.10518457]
[1756553540326,7.73,202.4,202.32,12.10518457]
[1756553541123,2.41814167,202.38,202.32,12.10518457]
[1756553541320,7.73,202.37,202.3,4.13518457]
[1756553541726,7.73,202.37,202.31,0.03270476]
[1756553542732,7.73,202.34,202.31,0.03270476]
[1756553542933,10.14814167,202.32,202.31,0.03270476]
[1756553545736,0.46729524,202.31,202.24,7.97]
[1756553545935,10.14814167,202.32,202.24,7.97]
[1756553546938,0.03252626,202.3,202.24,7.97]
[1756553547740,7.76252626,202.3,202.24,7.97]
[1756553548440,2.41814167,202.28,202.2,7.97]
[1756553548639,7.73,202.29,202.2,2.41814167]
[1756553548944,7.73,202.29,202.22,7.97]
[1756553549744,0.03252626,202.3,202.2,2.41814167]
[1756553549745,0.03252626,202.3,202.24,7.97]
[1756553552841,0.03252626,202.3,202.25,4.4495]
[1756553553043,0.03252626,202.3,202.26,7.97]
[1756553553250,0.03252626,202.3,202.28,7.97]
[1756553553944,0.03252626,202.3,202.2,4.13518457]
[1756553553945,0.03252626,202.3,202.22,7.97]
[1756553554147,7.73,202.29,202.22,7.97]
[1756553555254,2.45066793,202.3,202.22,7.97]
[1756553555255,0.03252626,202.3,202.22,7.97]
[1756553555456,7.76252626,202.3,202.22,7.97]
[1756553556953,0.03252626,202.3,202.22,7.97]
[1756553557750,0.03252626,202.3,202.24,7.92]
[1756553569962,0.03252626,202.3,202.26,7.92]
[1756553570860,0.03252626,202.3,202.25,7.92]
[1756553571862,0.03252626,202.3,202.26,4.4491]
[1756553572057,0.03252626,202.3,202.27,7.92]
[1756553572659,0.03252626,202.3,202.26,4.4491]
[1756553572857,0.03252626,202.3,202.25,7.92]
[1756553573258,0.03252626,202.3,202.24,7.92]
[1756553579373,0.03252626,202.3,202.25,7.92]
[1756553580674,0.03252626,202.3,202.25,12.03806547]
[1756553580972,19.50387,202.41,202.29,7.92]
[1756553581172,19.50387,202.41,202.32,12.03806547]
[1756553581366,19.50387,202.41,202.32,4.11806547]
[1756553581569,19.50387,202.41,202.33,12.3676]
[1756553581872,19.50387,202.41,202.33,7.92]
[1756553584376,19.50387,202.41,202.33,12.03806547]
[1756553585277,19.50387,202.41,202.33,7.92]
[1756553585479,19.50387,202.41,202.33,12.03806547]
[1756553585976,19.50387,202.41,202.33,12.06862497]
[1756553586375,2.41814167,202.4,202.3,12.06862497]
[1756553586774,7.94,202.39,202.3,12.06862497]
[1756553586975,121.32,202.38,202.3,12.06862497]
[1756553587179,7.91,202.36,202.28,4.14862497]
[1756553587376,7.91,202.36,202.27,7.6]
[1756553588277,2.41814167,202.37,202.27,11.74862497]
[1756553588481,7.91,202.36,202.27,7.6]
[1756553589280,7.91,202.36,202.27,11.74862497]
[1756553589480,7.91,202.36,202.27,7.6]
[1756553590183,7.91,202.36,202.27,11.74862497]
[1756553590380,7.91,202.36,202.27,7.6]
[1756553592085,7.91,202.33,202.27,7.6]
[1756553592285,121.32,202.38,202.27,7.6]
[1756553592286,7.91,202.3,202.27,7.6]
[1756553593689,7.91,202.3,202.23,11.74862497]
[1756553593986,7.91,202.3,202.23,7.6]
[1756553609794,2.41814167,202.28,202.19,4.14862497]
[1756553609995,7.91,202.24,202.19,7.6]
[1756553610300,2.41814167,202.25,202.18,7.6]
[1756553610605,10.32814167,202.25,202.18,7.6]
[1756553611005,7.91,202.25,202.18,7.6]
[1756553614702,7.91,202.22,202.18,7.6]
[1756553615102,7.91,202.22,202.14,7.6]